[Event "Early-Titled-Tuesday-Blitz-February-06-2024"]
[Site "Chess.com"]
[Date "2024.02.06"]
[Round "4"]
[White "FoxOnTheRun97"]
[Black "Anton_Demchenko"]
[Result "0-1"]
[WhiteElo "2651"]
[BlackElo "2894"]
[TimeControl "180+1"]
[EndTime "8:39:21 PST"]
[Termination "Anton_Demchenko won by resignation"]

1. d4 {[%clk 0:03:00.9]} 1... Nf6 {[%clk 0:03:00.4]} 2. Bg5 {[%clk 0:03:00.3]}
2... g6 {[%clk 0:03:01.1]} 3. Bxf6 {[%clk 0:03:00.5]} 3... exf6 {[%clk 0:03:02]}
4. e3 {[%clk 0:03:00.5]} 4... d5 {[%clk 0:03:02.9]} 5. g3 {[%clk 0:02:59.8]}
5... c6 {[%clk 0:03:02.6]} 6. Bg2 {[%clk 0:02:59.3]} 6... Be6 {[%clk 0:03:02.9]}
7. Ne2 {[%clk 0:02:59.9]} 7... Bd6 {[%clk 0:03:03.3]} 8. Nf4 {[%clk 0:02:59.7]}
8... Bxf4 {[%clk 0:03:00.8]} 9. exf4 {[%clk 0:02:58.9]} 9... Nd7 {[%clk
0:02:58.1]} 10. O-O {[%clk 0:02:55.4]} 10... Qb6 {[%clk 0:02:49.9]} 11. b3
{[%clk 0:02:52.1]} 11... O-O {[%clk 0:02:49.5]} 12. c3 {[%clk 0:02:45.7]} 12...
c5 {[%clk 0:02:30.6]} 13. dxc5 {[%clk 0:02:19.5]} 13... Qxc5 {[%clk 0:02:30.7]}
14. Qd4 {[%clk 0:02:17.9]} 14... Qxd4 {[%clk 0:02:29.5]} 15. cxd4 {[%clk
0:02:18.8]} 15... Rac8 {[%clk 0:02:30.2]} 16. Na3 {[%clk 0:02:11.6]} 16... Nb8
{[%clk 0:02:25.2]} 17. Rac1 {[%clk 0:01:48.2]} 17... Nc6 {[%clk 0:02:22.8]} 18.
Rfd1 {[%clk 0:01:45.3]} 18... Nb4 {[%clk 0:02:02.1]} 19. Rc5 {[%clk 0:01:29.9]}
19... b6 {[%clk 0:01:56.5]} 20. Rxc8 {[%clk 0:01:27.7]} 20... Rxc8 {[%clk
0:01:57.4]} 21. Nb5 {[%clk 0:01:28.1]} 21... a6 {[%clk 0:01:45.7]} 22. a3 {[%clk
0:01:00.8]} 22... Nc2 {[%clk 0:01:09.4]} 23. Nd6 {[%clk 0:00:53.8]} 23... Rd8
{[%clk 0:01:02.9]} 24. f5 {[%clk 0:00:46.3]} 24... gxf5 {[%clk 0:01:02.7]} 25.
Nb7 {[%clk 0:00:31.5]} 25... Rd7 {[%clk 0:01:02.3]} 26. Rc1 {[%clk 0:00:31.6]}
26... Nxd4 {[%clk 0:00:57.4]} 27. Rc8+ {[%clk 0:00:31.1]} 27... Kg7 {[%clk
0:00:58.1]} 28. Nd8 {[%clk 0:00:28.5]} 28... Rd6 {[%clk 0:00:44.8]} 29. Ra8
{[%clk 0:00:23.5]} 29... a5 {[%clk 0:00:38.4]} 30. b4 {[%clk 0:00:22.4]} 30...
axb4 {[%clk 0:00:38.1]} 31. axb4 {[%clk 0:00:23.3]} 31... Nc2 {[%clk 0:00:38.8]}
32. b5 {[%clk 0:00:19.5]} 32... d4 {[%clk 0:00:38.9]} 33. Bf3 {[%clk 0:00:17.5]}
33... d3 {[%clk 0:00:36.8]} 34. Nc6 {[%clk 0:00:13.4]} 34... Nd4 {[%clk
0:00:23.3]} 35. Bd1 {[%clk 0:00:06.5]} 35... Nxc6 {[%clk 0:00:21.7]} 36. bxc6
{[%clk 0:00:07.4]} 36... Rxc6 {[%clk 0:00:22.6]} 37. Ra1 {[%clk 0:00:07.4]}
37... d2 {[%clk 0:00:17.3]} 0-1

[Event "Early-Titled-Tuesday-Blitz-February-06-2024"]
[Site "Chess.com"]
[Date "2024.02.06"]
[Round "4"]
[White "boguszp"]
[Black "Ducke13"]
[Result "0-1"]
[WhiteElo "2043"]
[BlackElo "2294"]
[TimeControl "180+1"]
[EndTime "8:39:21 PST"]
[Termination "Ducke13 won on time"]

1. d4 {[%clk 0:03:00.9]} 1... Nf6 {[%clk 0:02:54.2]} 2. Bf4 {[%clk 0:03:01.1]}
2... g6 {[%clk 0:02:52.1]} 3. Nc3 {[%clk 0:03:01.7]} 3... d5 {[%clk 0:02:50.6]}
4. Nf3 {[%clk 0:03:00.4]} 4... Bg7 {[%clk 0:02:48.5]} 5. e3 {[%clk 0:03:00.8]}
5... O-O {[%clk 0:02:47.5]} 6. Bd3 {[%clk 0:03:00.9]} 6... c5 {[%clk 0:02:43.2]}
7. dxc5 {[%clk 0:02:59.4]} 7... Nbd7 {[%clk 0:02:42.3]} 8. O-O {[%clk
0:02:28.9]} 8... Nxc5 {[%clk 0:02:38.9]} 9. h3 {[%clk 0:02:26.3]} 9... b6 {[%clk
0:02:15.9]} 10. Bh2 {[%clk 0:02:16.5]} 10... Bb7 {[%clk 0:02:15.7]} 11. Nd4
{[%clk 0:02:16.7]} 11... Rc8 {[%clk 0:02:13.7]} 12. Qe2 {[%clk 0:02:12.2]} 12...
Re8 {[%clk 0:02:09.1]} 13. Rfd1 {[%clk 0:02:04.1]} 13... e5 {[%clk 0:02:06.2]}
14. Nb3 {[%clk 0:02:03.7]} 14... Nfd7 {[%clk 0:01:54.6]} 15. Bb5 {[%clk
0:02:01.8]} 15... d4 {[%clk 0:01:33.6]} 16. Nxc5 {[%clk 0:01:33.8]} 16... bxc5
{[%clk 0:01:32]} 17. Na4 {[%clk 0:01:17.2]} 17... Re7 {[%clk 0:01:08.7]} 18. c3
{[%clk 0:01:12.5]} 18... Nf6 {[%clk 0:00:35.7]} 19. Rd2 {[%clk 0:00:40.3]} 19...
Ne4 {[%clk 0:00:32]} 20. Rdd1 {[%clk 0:00:34.4]} 20... Ng5 {[%clk 0:00:26.3]}
21. Re1 {[%clk 0:00:26.9]} 21... Qa5 {[%clk 0:00:10.5]} 22. b3 {[%clk
0:00:21.7]} 22... a6 {[%clk 0:00:09.3]} 23. Bc4 {[%clk 0:00:19.3]} 23... Qd8
{[%clk 0:00:09.4]} 24. Rad1 {[%clk 0:00:18.1]} 24... Ne6 {[%clk 0:00:05.9]} 25.
Bxe6 {[%clk 0:00:16.1]} 25... Rxe6 {[%clk 0:00:06.2]} 26. cxd4 {[%clk
0:00:16.5]} 26... exd4 {[%clk 0:00:06.6]} 27. Qd3 {[%clk 0:00:13.3]} 27... Qg5
{[%clk 0:00:06.3]} 28. g3 {[%clk 0:00:10.6]} 28... Rce8 {[%clk 0:00:06.3]} 29.
Nxc5 {[%clk 0:00:07.8]} 29... Qxc5 {[%clk 0:00:04.6]} 30. Rc1 {[%clk 0:00:02.4]}
30... Qd5 {[%clk 0:00:05]} 0-1

[Event "Early-Titled-Tuesday-Blitz-February-06-2024"]
[Site "Chess.com"]
[Date "2024.02.06"]
[Round "4"]
[White "margarita_2703"]
[Black "Jakuboss22005"]
[Result "1-0"]
[WhiteElo "2348"]
[BlackElo "2489"]
[TimeControl "180+1"]
[EndTime "8:39:22 PST"]
[Termination "margarita_2703 won on time"]

1. e4 {[%clk 0:03:00.1]} 1... g6 {[%clk 0:02:59.5]} 2. d4 {[%clk 0:02:49.9]}
2... Bg7 {[%clk 0:02:59.1]} 3. c3 {[%clk 0:02:42.7]} 3... d6 {[%clk 0:02:58.4]}
4. Nf3 {[%clk 0:02:40]} 4... Nf6 {[%clk 0:02:57.2]} 5. Bd3 {[%clk 0:02:39]} 5...
Nc6 {[%clk 0:02:57.5]} 6. O-O {[%clk 0:02:37.9]} 6... e5 {[%clk 0:02:56.9]} 7.
h3 {[%clk 0:02:33.7]} 7... O-O {[%clk 0:02:56.4]} 8. Re1 {[%clk 0:02:29.2]} 8...
h6 {[%clk 0:02:56.2]} 9. Na3 {[%clk 0:02:26.8]} 9... Nh5 {[%clk 0:02:56]} 10.
Nc2 {[%clk 0:02:25.3]} 10... Bd7 {[%clk 0:02:48.2]} 11. Be3 {[%clk 0:02:23.4]}
11... Qf6 {[%clk 0:02:45]} 12. Qd2 {[%clk 0:02:22.3]} 12... Nf4 {[%clk
0:02:40.9]} 13. Bxf4 {[%clk 0:02:21.1]} 13... Qxf4 {[%clk 0:02:37.3]} 14. Qxf4
{[%clk 0:02:19.1]} 14... exf4 {[%clk 0:02:38.2]} 15. Rad1 {[%clk 0:02:10.1]}
15... Rad8 {[%clk 0:02:36]} 16. Bb5 {[%clk 0:02:08.2]} 16... a6 {[%clk
0:02:33.7]} 17. Bxc6 {[%clk 0:02:07]} 17... Bxc6 {[%clk 0:02:34.6]} 18. d5
{[%clk 0:02:06.2]} 18... Ba4 {[%clk 0:02:32.1]} 19. b3 {[%clk 0:02:05.3]} 19...
Bd7 {[%clk 0:02:30.7]} 20. c4 {[%clk 0:02:05.5]} 20... Rfe8 {[%clk 0:02:24.4]}
21. Re2 {[%clk 0:02:04.7]} 21... b5 {[%clk 0:02:19.7]} 22. Na3 {[%clk 0:01:59]}
22... Ra8 {[%clk 0:02:12.3]} 23. Ne1 {[%clk 0:01:55.3]} 23... Bc3 {[%clk
0:02:03]} 24. Nd3 {[%clk 0:01:54.5]} 24... f3 {[%clk 0:01:55]} 25. gxf3 {[%clk
0:01:55.4]} 25... Bxh3 {[%clk 0:01:54.8]} 26. cxb5 {[%clk 0:01:51.7]} 26... axb5
{[%clk 0:01:50.4]} 27. Nxb5 {[%clk 0:01:52.6]} 27... Ba5 {[%clk 0:01:48.4]} 28.
a4 {[%clk 0:01:52.1]} 28... Re7 {[%clk 0:01:42.8]} 29. b4 {[%clk 0:01:50.5]}
29... Bb6 {[%clk 0:01:38.2]} 30. a5 {[%clk 0:01:49.7]} 30... Bd7 {[%clk
0:01:34]} 31. Na3 {[%clk 0:01:37.1]} 31... Bd4 {[%clk 0:01:26.7]} 32. Rc1 {[%clk
0:01:34.2]} 32... Be8 {[%clk 0:01:21.2]} 33. Rec2 {[%clk 0:01:33.7]} 33... Ra7
{[%clk 0:01:19.9]} 34. Rc4 {[%clk 0:01:33.3]} 34... Bf6 {[%clk 0:01:10.2]} 35.
Rc6 {[%clk 0:01:33.5]} 35... Bxc6 {[%clk 0:01:07.3]} 36. Rxc6 {[%clk 0:01:34.4]}
36... Kg7 {[%clk 0:00:45.7]} 37. a6 {[%clk 0:01:33.6]} 37... Re8 {[%clk
0:00:40.3]} 38. Nb5 {[%clk 0:01:32.2]} 38... Raa8 {[%clk 0:00:40.4]} 39. Nxc7
{[%clk 0:01:32.4]} 39... Reb8 {[%clk 0:00:33.5]} 40. Nxa8 {[%clk 0:01:32.2]}
40... Rxa8 {[%clk 0:00:34.4]} 41. b5 {[%clk 0:01:30.4]} 41... Bd4 {[%clk
0:00:34.6]} 42. Rxd6 {[%clk 0:01:27.5]} 42... Rb8 {[%clk 0:00:34.7]} 43. Rc6
{[%clk 0:01:07.3]} 43... Rxb5 {[%clk 0:00:34.2]} 44. Kg2 {[%clk 0:01:04.5]}
44... Rb3 {[%clk 0:00:28.8]} 45. Nc5 {[%clk 0:01:02.9]} 45... Ra3 {[%clk
0:00:27.2]} 46. d6 {[%clk 0:00:52.9]} 46... Bxc5 {[%clk 0:00:20.1]} 47. Rxc5
{[%clk 0:00:52.2]} 47... Rxa6 {[%clk 0:00:20.7]} 48. d7 {[%clk 0:00:52.5]} 48...
Ra8 {[%clk 0:00:10.2]} 49. Rc8 {[%clk 0:00:49.9]} 1-0

[Event "Early-Titled-Tuesday-Blitz-February-06-2024"]
[Site "Chess.com"]
[Date "2024.02.06"]
[Round "4"]
[White "guillembaches"]
[Black "Chemim21"]
[Result "1-0"]
[WhiteElo "2563"]
[BlackElo "2234"]
[TimeControl "180+1"]
[EndTime "8:39:24 PST"]
[Termination "guillembaches won on time"]

1. d4 {[%clk 0:03:00.9]} 1... d5 {[%clk 0:02:59.7]} 2. Nf3 {[%clk 0:03:00.8]}
2... e6 {[%clk 0:02:58.4]} 3. Bf4 {[%clk 0:03:00.5]} 3... Bd6 {[%clk 0:02:57.9]}
4. Bg3 {[%clk 0:03:00.4]} 4... Nf6 {[%clk 0:02:57]} 5. e3 {[%clk 0:03:00.5]}
5... Ne4 {[%clk 0:02:57]} 6. Bxd6 {[%clk 0:02:58]} 6... cxd6 {[%clk 0:02:54.6]}
7. Nbd2 {[%clk 0:02:57.8]} 7... Nc6 {[%clk 0:02:52.6]} 8. Bd3 {[%clk 0:02:55.2]}
8... f5 {[%clk 0:02:51.7]} 9. O-O {[%clk 0:02:53.9]} 9... Qf6 {[%clk 0:02:50]}
10. c4 {[%clk 0:02:52.4]} 10... Nxd2 {[%clk 0:02:29.7]} 11. Qxd2 {[%clk
0:02:46]} 11... dxc4 {[%clk 0:02:30]} 12. Bxc4 {[%clk 0:02:46.3]} 12... d5
{[%clk 0:02:30.2]} 13. Bb5 {[%clk 0:02:45.6]} 13... Bd7 {[%clk 0:02:29.5]} 14.
Bxc6 {[%clk 0:02:40.4]} 14... Bxc6 {[%clk 0:02:22.5]} 15. Ne5 {[%clk 0:02:40.6]}
15... O-O {[%clk 0:02:13]} 16. f4 {[%clk 0:02:40.2]} 16... Bb5 {[%clk
0:02:05.4]} 17. Rfc1 {[%clk 0:02:38.8]} 17... Rfc8 {[%clk 0:02:04.8]} 18. Qb4
{[%clk 0:02:30.1]} 18... Ba6 {[%clk 0:01:51.4]} 19. Qd6 {[%clk 0:02:19.2]} 19...
g5 {[%clk 0:01:32.4]} 20. g3 {[%clk 0:02:03.3]} 20... gxf4 {[%clk 0:01:29.2]}
21. exf4 {[%clk 0:02:02.9]} 21... Rd8 {[%clk 0:01:22.3]} 22. Qb4 {[%clk
0:01:59.3]} 22... h5 {[%clk 0:01:14.8]} 23. Rc3 {[%clk 0:01:56.4]} 23... h4
{[%clk 0:01:13]} 24. Rac1 {[%clk 0:01:55.9]} 24... Qf8 {[%clk 0:01:00.6]} 25.
Qxf8+ {[%clk 0:01:43.4]} 25... Rxf8 {[%clk 0:01:00.5]} 26. Rc7 {[%clk
0:01:42.5]} 26... hxg3 {[%clk 0:00:57.8]} 27. hxg3 {[%clk 0:01:42.3]} 27... Rfe8
{[%clk 0:00:38]} 28. Kf2 {[%clk 0:01:34.7]} 28... b6 {[%clk 0:00:37.5]} 29. Nd7
{[%clk 0:01:30.8]} 29... Rec8 {[%clk 0:00:30.7]} 30. Nf6+ {[%clk 0:01:24.9]}
30... Kf8 {[%clk 0:00:29.3]} 31. Nd7+ {[%clk 0:01:22.1]} 31... Kg8 {[%clk
0:00:28.4]} 32. Ne5 {[%clk 0:01:18.3]} 32... Rxc7 {[%clk 0:00:25.8]} 33. Rxc7
{[%clk 0:01:18.2]} 33... Rc8 {[%clk 0:00:26]} 34. Rxc8+ {[%clk 0:01:16.5]} 34...
Bxc8 {[%clk 0:00:25.1]} 35. Nc6 {[%clk 0:01:16.6]} 35... Bd7 {[%clk 0:00:21.1]}
36. Ne5 {[%clk 0:01:02.6]} 36... Bb5 {[%clk 0:00:18.7]} 37. Ke3 {[%clk
0:01:02.2]} 37... Kg7 {[%clk 0:00:18.7]} 38. Kd2 {[%clk 0:01:02.2]} 38... Kh6
{[%clk 0:00:18.6]} 39. Kc3 {[%clk 0:01:02.3]} 39... Kh5 {[%clk 0:00:18.5]} 40.
Kb4 {[%clk 0:01:02.2]} 40... Be2 {[%clk 0:00:17.1]} 41. a4 {[%clk 0:00:57]}
41... Bf1 {[%clk 0:00:13.5]} 42. a5 {[%clk 0:00:56]} 42... bxa5+ {[%clk
0:00:12.5]} 43. Kxa5 {[%clk 0:00:55.8]} 43... a6 {[%clk 0:00:12.7]} 44. Kb6
{[%clk 0:00:55.4]} 44... Kh6 {[%clk 0:00:08.8]} 45. Kc7 {[%clk 0:00:55.5]} 45...
Kg7 {[%clk 0:00:09.5]} 46. Kd6 {[%clk 0:00:55.4]} 46... Kf6 {[%clk 0:00:10.2]}
47. Nd7+ {[%clk 0:00:55.1]} 47... Kf7 {[%clk 0:00:10.2]} 48. Nc5 {[%clk
0:00:55.1]} 48... Kf6 {[%clk 0:00:08]} 49. Nxe6 {[%clk 0:00:54.5]} 49... Bg2
{[%clk 0:00:03]} 50. Nc7 {[%clk 0:00:53]} 50... a5 {[%clk 0:00:03]} 51. Nxd5+
{[%clk 0:00:52.2]} 1-0

[Event "Early-Titled-Tuesday-Blitz-February-06-2024"]
[Site "Chess.com"]
[Date "2024.02.06"]
[Round "4"]
[White "BeardedNM"]
[Black "Atousa"]
[Result "0-1"]
[WhiteElo "2212"]
[BlackElo "2460"]
[TimeControl "180+1"]
[EndTime "8:39:25 PST"]
[Termination "Atousa won by resignation"]

1. e4 {[%clk 0:03:00.9]} 1... c5 {[%clk 0:02:58.4]} 2. Nf3 {[%clk 0:03:00.7]}
2... e6 {[%clk 0:02:59]} 3. d4 {[%clk 0:03:01.1]} 3... cxd4 {[%clk 0:02:59.9]}
4. Nxd4 {[%clk 0:03:01.7]} 4... a6 {[%clk 0:03:00.8]} 5. Bd3 {[%clk 0:03:01.4]}
5... Bc5 {[%clk 0:03:00.4]} 6. Nb3 {[%clk 0:03:00.6]} 6... Be7 {[%clk
0:03:00.8]} 7. Nc3 {[%clk 0:02:59.9]} 7... Nc6 {[%clk 0:02:59.5]} 8. Qg4 {[%clk
0:02:58.8]} 8... g6 {[%clk 0:02:59.1]} 9. Qe2 {[%clk 0:02:59]} 9... d6 {[%clk
0:02:58.2]} 10. f4 {[%clk 0:02:54.6]} 10... Nf6 {[%clk 0:02:57.2]} 11. O-O
{[%clk 0:02:41.6]} 11... O-O {[%clk 0:02:54.7]} 12. Kh1 {[%clk 0:02:40.5]} 12...
Qc7 {[%clk 0:02:50.1]} 13. Bd2 {[%clk 0:02:37.7]} 13... b5 {[%clk 0:02:49.6]}
14. f5 {[%clk 0:02:26.4]} 14... Ne5 {[%clk 0:02:31.4]} 15. Nd1 {[%clk
0:02:03.1]} 15... exf5 {[%clk 0:02:20.6]} 16. exf5 {[%clk 0:02:02.4]} 16... Bb7
{[%clk 0:02:21.1]} 17. Bh6 {[%clk 0:01:41.4]} 17... Rfe8 {[%clk 0:02:20]} 18.
Ne3 {[%clk 0:01:34.1]} 18... Nh5 {[%clk 0:01:55.6]} 19. Rae1 {[%clk 0:01:16.9]}
19... Bf8 {[%clk 0:01:46.2]} 20. Bxf8 {[%clk 0:01:09.6]} 20... Rxf8 {[%clk
0:01:47.1]} 21. Ng4 {[%clk 0:01:00.5]} 21... Nxg4 {[%clk 0:01:18.4]} 22. Qxg4
{[%clk 0:00:58.5]} 22... Rae8 {[%clk 0:01:11.6]} 23. Nd4 {[%clk 0:00:44.9]}
23... Nf6 {[%clk 0:00:35.7]} 24. Qh4 {[%clk 0:00:40.5]} 24... Rxe1 {[%clk
0:00:24.3]} 25. Rxe1 {[%clk 0:00:35.5]} 25... Re8 {[%clk 0:00:22.8]} 26. Rf1
{[%clk 0:00:33.6]} 26... Nh5 {[%clk 0:00:18.2]} 27. Qg5 {[%clk 0:00:16]} 27...
Qe7 {[%clk 0:00:16.3]} 28. f6 {[%clk 0:00:15.8]} 28... Qe5 {[%clk 0:00:12.2]}
29. Qg4 {[%clk 0:00:13]} 29... Nxf6 {[%clk 0:00:11.1]} 30. Qh4 {[%clk
0:00:11.9]} 30... Nh5 {[%clk 0:00:08.8]} 31. Nf3 {[%clk 0:00:11.1]} 31... Qf4
{[%clk 0:00:06.8]} 32. Qxf4 {[%clk 0:00:09.9]} 32... Nxf4 {[%clk 0:00:07]} 33.
Kg1 {[%clk 0:00:07.1]} 33... Nxd3 {[%clk 0:00:07.1]} 34. cxd3 {[%clk 0:00:08]}
34... Re2 {[%clk 0:00:07.1]} 35. Re1 {[%clk 0:00:06.7]} 35... Bxf3 {[%clk
0:00:07]} 36. Rxe2 {[%clk 0:00:05.1]} 36... Bxe2 {[%clk 0:00:07.9]} 0-1

[Event "Early-Titled-Tuesday-Blitz-February-06-2024"]
[Site "Chess.com"]
[Date "2024.02.06"]
[Round "4"]
[White "vladgoncharov"]
[Black "FairChess_on_YouTube"]
[Result "0-1"]
[WhiteElo "2631"]
[BlackElo "3074"]
[TimeControl "180+1"]
[EndTime "8:39:26 PST"]
[Termination "FairChess_on_YouTube won on time"]

1. d4 {[%clk 0:03:00.9]} 1... Nf6 {[%clk 0:02:59.9]} 2. c4 {[%clk 0:03:00.2]}
2... e6 {[%clk 0:03:00.3]} 3. Nc3 {[%clk 0:02:59.3]} 3... Bb4 {[%clk 0:02:59.8]}
4. e3 {[%clk 0:02:59.3]} 4... O-O {[%clk 0:02:59.4]} 5. Bd3 {[%clk 0:02:58.9]}
5... d5 {[%clk 0:02:50.4]} 6. Ne2 {[%clk 0:02:57.4]} 6... c5 {[%clk 0:02:49.2]}
7. a3 {[%clk 0:02:50]} 7... Bxc3+ {[%clk 0:02:42.9]} 8. bxc3 {[%clk 0:02:49.7]}
8... dxc4 {[%clk 0:02:37.7]} 9. Bxc4 {[%clk 0:02:49.2]} 9... Qc7 {[%clk
0:02:37.8]} 10. Bd3 {[%clk 0:02:47.9]} 10... e5 {[%clk 0:02:37.3]} 11. O-O
{[%clk 0:02:44.9]} 11... Nc6 {[%clk 0:02:35.3]} 12. Bb2 {[%clk 0:02:12.5]} 12...
Re8 {[%clk 0:02:32.6]} 13. Ng3 {[%clk 0:01:48.9]} 13... Be6 {[%clk 0:02:19.6]}
14. Nh5 {[%clk 0:01:42.4]} 14... Nxh5 {[%clk 0:02:10.5]} 15. Qxh5 {[%clk
0:01:41.7]} 15... g6 {[%clk 0:01:54.1]} 16. Qh4 {[%clk 0:01:38]} 16... Rad8
{[%clk 0:01:51]} 17. f4 {[%clk 0:01:29.2]} 17... Qe7 {[%clk 0:01:24.6]} 18. Qxe7
{[%clk 0:00:54]} 18... Rxe7 {[%clk 0:01:25.5]} 19. Bb5 {[%clk 0:00:53.5]} 19...
exf4 {[%clk 0:01:12.9]} 20. Rxf4 {[%clk 0:00:48.4]} 20... Na5 {[%clk 0:01:07]}
21. Re1 {[%clk 0:00:35]} 21... Bc4 {[%clk 0:01:03.6]} 22. Ba4 {[%clk 0:00:32.4]}
22... Bd3 {[%clk 0:01:03.4]} 23. Kf2 {[%clk 0:00:28.4]} 23... Nc4 {[%clk
0:01:02.1]} 24. Bc1 {[%clk 0:00:27.8]} 24... Nd6 {[%clk 0:01:01.7]} 25. Rd1
{[%clk 0:00:15.6]} 25... Ne4+ {[%clk 0:00:52.7]} 26. Ke1 {[%clk 0:00:15.5]}
26... Nxc3 {[%clk 0:00:47.9]} 27. Rxd3 {[%clk 0:00:12.8]} 27... Nxa4 {[%clk
0:00:48.4]} 28. d5 {[%clk 0:00:13.2]} 28... Nb6 {[%clk 0:00:40.6]} 29. d6 {[%clk
0:00:13.2]} 29... Re6 {[%clk 0:00:40.6]} 30. Bb2 {[%clk 0:00:06.7]} 30... Rdxd6
{[%clk 0:00:35.9]} 31. Rxd6 {[%clk 0:00:06.4]} 31... Rxd6 {[%clk 0:00:36.8]} 32.
h4 {[%clk 0:00:06.7]} 32... Re6 {[%clk 0:00:32.2]} 33. Kf2 {[%clk 0:00:06]}
33... Nd5 {[%clk 0:00:28.4]} 34. Rf3 {[%clk 0:00:05.3]} 34... f5 {[%clk
0:00:26.5]} 35. h5 {[%clk 0:00:04.9]} 35... Nf6 {[%clk 0:00:23.8]} 36. hxg6
{[%clk 0:00:04.9]} 36... hxg6 {[%clk 0:00:23.1]} 37. Rh3 {[%clk 0:00:04.7]}
37... b5 {[%clk 0:00:19.6]} 0-1

[Event "Early-Titled-Tuesday-Blitz-February-06-2024"]
[Site "Chess.com"]
[Date "2024.02.06"]
[Round "4"]
[White "Licancabur"]
[Black "Zavgorodniy_Sergiy"]
[Result "0-1"]
[WhiteElo "2424"]
[BlackElo "2614"]
[TimeControl "180+1"]
[EndTime "8:39:26 PST"]
[Termination "Zavgorodniy_Sergiy won on time"]

1. d4 {[%clk 0:03:00.5]} 1... Nf6 {[%clk 0:02:58.7]} 2. Bg5 {[%clk 0:02:59.6]}
2... e6 {[%clk 0:02:56.5]} 3. e4 {[%clk 0:02:59.2]} 3... h6 {[%clk 0:02:56.2]}
4. Bxf6 {[%clk 0:02:59.3]} 4... Qxf6 {[%clk 0:02:55.8]} 5. c3 {[%clk 0:02:59.5]}
5... d6 {[%clk 0:02:55.7]} 6. Bd3 {[%clk 0:02:58.5]} 6... e5 {[%clk 0:02:47.9]}
7. Ne2 {[%clk 0:02:57.8]} 7... Qd8 {[%clk 0:02:28.6]} 8. O-O {[%clk 0:02:56.7]}
8... Be7 {[%clk 0:02:28.8]} 9. f4 {[%clk 0:02:55.5]} 9... O-O {[%clk 0:02:28.9]}
10. Nd2 {[%clk 0:02:51.2]} 10... Bf6 {[%clk 0:02:19.9]} 11. Nf3 {[%clk
0:02:36.9]} 11... Re8 {[%clk 0:02:19]} 12. Qe1 {[%clk 0:02:24.2]} 12... Bg4
{[%clk 0:02:15.3]} 13. Rd1 {[%clk 0:02:14.5]} 13... Bxf3 {[%clk 0:02:13.3]} 14.
Rxf3 {[%clk 0:02:12.3]} 14... Nd7 {[%clk 0:02:09.4]} 15. Bc4 {[%clk 0:01:54.3]}
15... c6 {[%clk 0:02:09.1]} 16. Ng3 {[%clk 0:01:24.8]} 16... b5 {[%clk
0:01:55.9]} 17. Bb3 {[%clk 0:01:18.6]} 17... Qb6 {[%clk 0:01:51.5]} 18. Kh1
{[%clk 0:01:14.3]} 18... exd4 {[%clk 0:01:49.1]} 19. cxd4 {[%clk 0:01:09.6]}
19... Bxd4 {[%clk 0:01:48.7]} 20. Nf5 {[%clk 0:01:09.5]} 20... c5 {[%clk
0:01:03.1]} 21. Rxd4 {[%clk 0:01:06.4]} 21... cxd4 {[%clk 0:01:02.6]} 22. Qg3
{[%clk 0:01:05.7]} 22... g5 {[%clk 0:00:51]} 23. Nxh6+ {[%clk 0:01:03.8]} 23...
Kf8 {[%clk 0:00:48.4]} 24. Qxg5 {[%clk 0:00:51.2]} 24... Qc5 {[%clk 0:00:36.3]}
25. f5 {[%clk 0:00:22.1]} 25... Rac8 {[%clk 0:00:36.2]} 26. Rf1 {[%clk
0:00:15.4]} 26... Qe5 {[%clk 0:00:30.5]} 27. Nxf7 {[%clk 0:00:12]} 27... Qg7
{[%clk 0:00:29.7]} 28. Qh5 {[%clk 0:00:10.1]} 28... Nf6 {[%clk 0:00:23.6]} 29.
Qh4 {[%clk 0:00:09.6]} 29... Rxe4 {[%clk 0:00:22.7]} 30. Qf2 {[%clk 0:00:08.4]}
30... Rce8 {[%clk 0:00:23]} 31. Nxd6 {[%clk 0:00:07.1]} 31... Re2 {[%clk
0:00:21.8]} 32. Nxe8 {[%clk 0:00:07.1]} 32... Rxf2 {[%clk 0:00:21.1]} 33. Rxf2
{[%clk 0:00:03]} 33... Nxe8 {[%clk 0:00:20.7]} 34. Rd2 {[%clk 0:00:01.8]} 34...
Qe5 {[%clk 0:00:20.1]} 0-1